bitfinex/quotes_SOLUSD_20250902
["timestamp","ask_amount","ask_price","bid_price","bid_amount"]
[1756777717303,5.68852227,200.06,199.99,13.59559401]
[1756777717504,5.68852227,200.06,200.0,0.71]
[1756777717799,5.68852227,200.06,200.0,0.45997]
[1756777718014,5.68852227,200.06,199.98,13.59559401]
[1756777718727,0.69,200.05,199.98,41.12]
[1756777719621,0.69,200.09,200.0,5.76985022]
[1756777719818,4.99650244,200.14,200.01,13.59559401]
[1756777719819,0.69,200.08,200.01,13.59559401]
[1756777720020,0.69,200.08,200.01,54.69559401]
[1756777721023,0.69,200.11,200.04,5.76985022]
[1756777721213,0.69,200.11,200.05,6.47985022]
[1756777721527,0.69,200.11,200.05,47.55985022]
[1756777721702,0.69,200.11,200.05,41.79]
[1756777721903,0.69,200.14,200.06,13.59559401]
[1756777722229,4.99625281,200.15,200.08,13.59559401]
[1756777722437,0.69,200.14,200.08,13.59559401]
[1756777722736,0.69,200.14,200.07,0.71]
[1756777723098,0.75,200.14,200.07,0.71]
[1756777723298,0.75,200.14,200.08,13.59559401]
[1756777723610,0.75,200.14,200.07,41.79]
[1756777723807,0.75,200.14,200.07,41.08]
[1756777724017,5.68675211,200.13,200.07,13.59559401]
[1756777724212,5.68675211,200.13,200.06,41.08]
[1756777724419,5.68675211,200.13,200.05,6.47985022]
[1756777724613,5.68675211,200.13,200.06,41.08]
[1756777725425,5.68675211,200.13,200.05,0.71]
[1756777725602,5.68675211,200.13,200.06,55.36559401]
[1756777726727,5.68675211,200.13,200.06,0.71]
[1756777726728,18.17863238,200.13,200.06,0.71]
[1756777727071,0.69,200.12,199.96,12.491116]
[1756777727201,0.69,200.11,200.01,0.71]
[1756777727398,0.69,200.11,200.02,28.38]
[1756777727602,5.68675211,200.13,200.03,20.07544423]
[1756777727831,5.68675211,200.13,200.05,5.76985022]
[1756777728001,4.99675211,200.13,200.06,0.71]
[1756777728626,4.99675211,200.13,200.06,20.07544423]
[1756777728839,4.99675211,200.13,200.06,14.30559401]
[1756777729219,4.99675211,200.13,200.07,20.07544423]
[1756777729912,4.99675211,200.13,200.07,14.30559401]
[1756777730535,0.06,200.14,200.07,14.30559401]
[1756777731543,0.06,200.14,200.07,20.07544423]
[1756777731844,0.06,200.14,200.08,0.71]
[1756777733414,0.06,200.14,200.09,13.59559401]
[1756777733632,0.06,200.14,200.1,0.71]
[1756777733942,0.06,200.14,200.11,0.71]
[1756777734441,0.06,200.14,200.12,0.71]
[1756777734633,0.06,200.14,200.1,0.71]
[1756777735223,0.06,200.14,200.11,0.71]
[1756777735417,0.06,200.14,200.09,24.36317466]
[1756777735631,0.06,200.14,200.1,0.71]
[1756777735951,0.06,200.14,200.11,0.71]
[1756777736129,0.06,200.14,200.09,24.36317466]
[1756777736348,0.06,200.14,200.1,0.71]
[1756777736531,0.06,200.14,200.09,24.36317466]
[1756777736828,0.06,200.14,200.11,0.71]
[1756777738249,0.69,200.13,200.07,0.71]
[1756777739730,0.69,200.13,200.05,13.59559401]
[1756777739943,0.69,200.12,200.05,14.30559401]
[1756777740250,0.69,200.11,199.91,20.0]
[1756777740547,0.06,200.14,199.91,20.0]
[1756777740548,0.69,200.1,199.99,0.71]
[1756777741319,4.99775101,200.09,200.0,13.59559401]
[1756777741521,0.69,200.08,200.0,14.30559401]
[1756777741742,0.69,200.08,200.0,0.71]
[1756777742949,0.69,200.08,200.0,0.03]
[1756777743340,4.99825061,200.07,200.0,0.03]
[1756777743546,0.69,200.1,200.01,0.71]
[1756777743756,4.99700179,200.12,200.02,19.36544423]
[1756777744055,0.06,200.13,200.06,13.59559401]
[1756777744253,0.06,200.13,200.06,19.36544423]
[1756777744569,0.06,200.13,200.06,14.30559401]
[1756777744934,5.05675927,200.13,200.06,14.30559401]
[1756777745235,0.06,200.13,200.07,6.46985022]
[1756777745434,0.06,200.13,200.08,25.06330905]
[1756777745671,0.06,200.13,200.1,13.59559401]
[1756777746154,0.06,200.13,200.11,0.7]
[1756777746533,0.06,200.13,200.12,0.7]
[1756777747585,0.06,200.13,200.12,14.29559401]
[1756777748434,0.06,200.13,200.12,19.2925958]
[1756777748634,0.06,200.13,200.12,14.29559401]
[1756777749458,0.06,200.13,200.12,19.2925958]
[1756777750060,0.06,200.13,200.12,66.10244602]
[1756777750244,0.06,200.13,200.12,13.59559401]
[1756777750432,0.06,200.13,200.1,26.0]
[1756777750634,0.06,200.13,200.11,14.29559401]
[1756777751562,0.76,200.13,200.08,13.59559401]
[1756777751736,0.76,200.13,200.07,41.04]
[1756777751737,0.7,200.12,200.07,41.04]
[1756777752139,0.06,200.13,200.08,14.29559401]
[1756777752554,0.06,200.13,200.09,0.7]
[1756777752745,0.06,200.13,200.1,0.7]
[1756777753239,0.06,200.13,200.12,13.59559401]
[1756777753847,0.06,200.13,200.09,26.7]
[1756777754048,0.06,200.13,200.09,67.74]
[1756777754242,0.06,200.13,200.1,0.7]
[1756777754557,0.06,200.13,200.09,41.04]
[1756777754771,0.06,200.13,200.09,41.74]
[1756777754966,0.06,200.13,200.1,0.7]
[1756777755167,3.35733275,200.21,200.11,0.7]
[1756777755338,0.7,200.22,200.14,5.76985022]
[1756777755540,0.7,200.21,200.13,0.7]
[1756777755761,0.7,200.21,200.11,13.59559401]
[1756777755960,12.48425022,200.26,200.09,36.7674992]
[1756777755961,0.7,200.2,200.09,26.0]
[1756777756163,0.7,200.19,200.09,41.04]
[1756777756348,0.7,200.18,200.08,0.7]
[1756777756748,17.48513762,200.17,200.08,0.7]
[1756777756943,0.7,200.16,200.08,0.7]
[1756777757762,0.7,200.16,200.06,73.50985022]
[1756777757949,0.7,200.15,200.06,0.7]
[1756777758150,0.7,200.15,200.04,61.10544423]
[1756777758340,3.35869901,200.16,200.04,61.10544423]
[1756777758341,0.7,200.14,200.04,61.10544423]
[1756777758552,3.35869901,200.16,200.06,5.76985022]
[1756777758755,0.7,200.18,200.08,19.36544423]
[1756777758953,8.354333,200.19,200.1,5.76985022]
[1756777759154,0.7,200.21,200.12,5.76985022]
[1756777759373,5.69481448,200.21,200.13,0.7]
[1756777759953,5.69481448,200.21,200.13,6.46985022]
[1756777760381,0.7,200.23,200.14,0.7]
[1756777760553,0.7,200.23,200.14,6.46985022]
[1756777761202,3.35908804,200.25,200.17,5.76985022]
[1756777761474,0.7,200.24,200.17,5.76985022]
[1756777761976,0.7,200.24,200.16,47.52985022]
[1756777762277,4.99450604,200.22,200.13,0.7]
[1756777762468,4.99450604,200.22,200.17,5.76985022]
[1756777762677,0.7,200.21,200.17,5.76985022]
[1756777762871,4.99450604,200.22,200.17,5.76985022]
[1756777763057,4.99450604,200.22,200.18,5.76985022]
[1756777763257,5.69350875,200.26,200.2,5.76985022]
[1756777763579,5.69350875,200.26,200.21,5.76985022]
[1756777763783,0.7,200.25,200.2,5.76985022]
[1756777764083,4.99350875,200.26,200.2,5.26985022]
[1756777764375,4.99350875,200.26,200.19,5.76985022]
[1756777764675,0.7,200.25,200.19,5.76985022]
[1756777764881,0.7,200.25,200.2,5.76985022]
[1756777765082,0.7,200.24,200.19,5.76985022]
[1756777765261,4.99350875,200.26,200.2,6.46985022]
[1756777765461,5.69276049,200.29,200.16,5.76985022]
[1756777765670,4.05716781,200.28,200.14,57.08315119]
[1756777765876,0.7,200.27,200.17,0.7]
[1756777766071,0.7,200.27,200.2,5.76985022]
[1756777766276,4.9932591,200.27,200.22,5.76985022]
[1756777766580,5.6932591,200.27,200.23,5.76985022]
[1756777766877,0.7,200.3,200.23,6.46985022]
[1756777767180,0.7,200.3,200.18,4.99550404]
[1756777767399,0.7,200.29,200.22,5.76985022]
[1756777767894,0.7,200.28,200.21,5.76985022]
[1756777768065,0.7,200.27,200.18,0.7]
[1756777768261,4.99350843,200.26,200.21,5.76985022]
[1756777768574,12.48065498,200.31,200.21,5.76985022]
[1756777768887,21.52721911,200.3,200.21,5.76985022]
[1756777769069,4.0534298,200.29,200.2,5.76985022]
[1756777769266,0.7,200.28,200.14,41.012385]
[1756777769454,0.7,200.27,200.17,5.76985022]
[1756777769659,0.7,200.26,200.17,5.76985022]
[1756777769876,0.7,200.25,200.17,6.46985022]
[1756777770181,3.3534298,200.29,200.16,5.76985022]
[1756777770182,0.7,200.24,200.16,5.76985022]
[1756777770369,4.9942566,200.23,200.17,5.76985022]
[1756777770779,0.7,200.22,200.11,0.7]
[1756777771082,0.7,200.22,200.15,5.76985022]
[1756777771386,0.7,200.22,200.14,0.7]
[1756777771583,0.7,200.22,200.15,5.76985022]
[1756777772170,4.9932591,200.27,200.17,5.76985022]
[1756777772477,4.9937578,200.25,200.18,6.46985022]
[1756777772879,0.7,200.24,200.15,5.76985022]
[1756777773071,0.7,200.23,200.16,6.46985022]
[1756777773885,0.7,200.23,200.16,0.7]
[1756777774087,0.7,200.23,200.08,82.336143]
[1756777774088,0.7,200.22,200.12,0.7]
[1756777774595,17.48164426,200.21,200.09,14.29559401]
[1756777774792,0.7,200.2,200.09,14.29559401]
[1756777774991,0.7,200.19,200.11,5.76985022]
[1756777775183,4.9947555,200.21,200.16,5.76985022]
[1756777775393,5.6647555,200.21,200.15,5.76985022]
[1756777775568,5.6647555,200.21,200.15,8.57854413]
[1756777775894,5.6647555,200.21,200.08,36.10444182]
[1756777775895,0.67,200.25,200.16,0.69]
[1756777776493,0.67,200.25,200.19,8.57854413]
[1756777776677,4.99400719,200.24,200.19,8.57854413]
[1756777776878,5.66400719,200.24,200.19,9.26854413]
[1756777777210,0.67,200.27,200.21,8.57854413]
[1756777777499,3.3527045,200.28,200.22,9.26854413]
[1756777777671,4.99276049,200.29,200.23,8.57854413]
[1756777778085,4.99276049,200.29,200.23,9.26854413]
[1756777778292,0.67,200.28,200.2,0.69]
[1756777778472,4.9932591,200.27,200.22,8.57854413]
[1756777778681,5.6632591,200.27,200.21,8.57854413]
[1756777778904,4.99251123,200.3,200.22,9.26854413]
[1756777779083,3.3518325,200.29,200.23,8.57854413]
[1756777779281,4.99251123,200.3,200.24,0.69]
[1756777779492,4.99251123,200.3,200.24,9.26854413]
[1756777779872,4.99251123,200.3,200.24,0.69]
[1756777780165,4.99251123,200.3,200.18,13.59559401]
[1756777780166,0.67,200.29,200.23,8.57854413]
[1756777780586,0.67,200.32,200.17,13.62559401]
[1756777780894,0.67,200.32,200.25,8.57854413]
[1756777781192,0.67,200.32,200.18,17.48426415]
[1756777781193,0.67,200.31,200.24,8.57854413]
[1756777782072,0.67,200.3,200.23,8.57854413]
[1756777782386,0.67,200.3,200.21,0.47]
[1756777782588,4.99276049,200.29,200.23,8.57854413]
[1756777783366,0.67,200.28,200.22,8.57854413]
[1756777783602,4.99276049,200.29,200.21,0.47]
[1756777783770,0.67,200.3,200.22,0.47]
[1756777783970,5.66256742,200.3,200.24,8.57854413]
[1756777784198,5.66256742,200.3,200.23,8.57854413]
[1756777784689,0.67,200.29,200.19,0.47]
[1756777784892,4.01875253,200.29,200.22,8.57854413]
[1756777785097,0.67,200.28,200.22,8.57854413]
[1756777785600,0.67,200.28,200.19,0.47]
[1756777785790,0.67,200.28,200.22,8.57854413]
[1756777786298,0.67,200.27,200.22,8.57854413]
[1756777786483,3.34874904,200.29,200.22,8.57854413]
[1756777786674,4.99350843,200.26,200.21,8.57854413]
[1756777787017,0.67,200.25,200.17,0.03]
[1756777787303,0.67,200.25,200.19,8.57854413]
[1756777787875,0.67,200.25,200.17,5.49572039]
[1756777788091,4.99350843,200.26,200.21,8.57854413]
[1756777788580,5.66226199,200.31,200.24,8.57854413]
[1756777788776,3.3536526,200.3,200.25,8.57854413]
[1756777789393,3.3536526,200.3,200.25,9.04854413]
[1756777789723,4.99232255,200.31,200.25,9.04854413]
[1756777789876,0.67,200.3,200.25,8.57854413]
[1756777790309,0.67,200.33,200.27,8.57854413]
[1756777790502,0.67,200.33,200.26,0.47]
[1756777790691,4.99201277,200.32,200.26,0.47]
[1756777791111,4.99201277,200.32,200.27,8.57854413]
[1756777791317,5.66201277,200.32,200.27,8.57854413]
[1756777791498,5.66201277,200.32,200.24,0.47]
[1756777791703,5.66201277,200.32,200.26,8.57854413]
[1756777792213,5.66201277,200.32,200.24,0.47]
[1756777792422,5.66201277,200.32,200.26,8.57854413]
[1756777794103,0.67,200.31,200.25,8.57854413]
[1756777794424,4.02316167,200.31,200.25,8.57854413]
[1756777794723,4.99251123,200.3,200.25,8.57854413]
[1756777795099,4.99251123,200.3,200.23,0.47]
[1756777795417,4.99251123,200.3,200.24,8.57854413]
[1756777796397,0.67,200.29,200.24,8.57854413]
[1756777796598,0.67,200.28,200.24,8.57854413]
[1756777796926,4.99308307,200.28,200.24,8.57854413]
[1756777797263,0.67,200.33,200.27,8.57854413]
[1756777797402,0.67,200.33,200.25,0.47]
[1756777797725,0.67,200.33,200.27,8.57854413]
[1756777798318,3.3536098,200.35,200.25,9.04854413]
[1756777798526,0.67,200.33,200.27,8.57854413]
[1756777799015,3.3536098,200.33,200.25,13.59559401]
[1756777799218,8.34462597,200.36,200.26,0.47]
[1756777799538,4.0236098,200.35,200.28,3.59528879]
[1756777799722,0.67,200.35,200.28,4.06528879]
[1756777800341,0.67,200.34,200.26,3.59528879]
[1756777801036,5.66176359,200.33,200.26,3.59528879]
[1756777801240,0.67,200.33,200.26,3.59528879]
[1756777801532,3.35530781,200.33,200.27,3.59528879]
[1756777802137,3.35530781,200.33,200.26,0.47]
[1756777802455,0.67,200.32,200.2,80.3]
[1756777802742,0.67,200.31,200.19,3.59528879]
[1756777802916,5.66251123,200.3,200.21,3.59528879]
[1756777803115,3.35530781,200.29,200.23,3.59528879]
[1756777803322,5.66251123,200.3,200.23,3.59528879]
[1756777803760,4.99226853,200.31,200.23,0.47]
[1756777803944,4.99226853,200.31,200.25,3.59528879]
[1756777804540,0.67,200.3,200.16,41.010131]
[1756777804864,3.35955564,200.3,200.25,3.59528879]
[1756777805068,4.99201277,200.32,200.25,4.06528879]
[1756777805362,0.72,200.36,200.26,14.06559401]
[1756777805654,0.72,200.35,200.26,3.59528879]
[1756777805861,0.72,200.34,200.27,3.59528879]
[1756777806031,3.35925398,200.35,200.26,3.59528879]
[1756777806233,0.72,200.33,200.26,3.59528879]
[1756777806452,0.72,200.33,200.27,3.59528879]
[1756777806637,0.72,200.33,200.28,3.59528879]
[1756777807359,4.07925398,200.33,200.26,0.47]
[1756777807857,4.07925398,200.33,200.27,3.59528879]
[1756777808254,3.35925398,200.33,200.26,5.46342691]
[1756777808450,3.35925398,200.33,200.29,3.59528879]
[1756777808653,0.72,200.32,200.24,13.59559401]
[1756777808852,0.72,200.32,200.23,0.47]
[1756777808853,4.99226199,200.31,200.23,0.47]
[1756777809162,4.99226199,200.31,200.26,3.59528879]
[1756777809331,0.72,200.3,200.25,3.59528879]
[1756777809531,4.99226199,200.31,200.19,0.47]
[1756777809532,0.72,200.29,200.19,0.47]
[1756777809760,3.3595821,200.3,200.22,3.59528879]
[1756777809945,0.72,200.29,200.23,3.59528879]
[1756777810149,0.72,200.28,200.23,3.59528879]
[1756777810458,0.72,200.27,200.18,0.47]
[1756777810754,0.72,200.27,200.21,3.59528879]
[1756777810953,4.0795821,200.3,200.23,3.59528879]
[1756777811144,9.07234636,200.29,200.19,0.47]
[1756777811342,3.3595821,200.28,200.22,3.59528879]
[1756777811543,3.3595821,200.28,200.23,3.59528879]
[1756777811735,41.6,200.32,200.25,3.59528879]
[1756777811736,4.99251796,200.3,200.25,3.59528879]
[1756777811933,3.35993829,200.29,200.26,3.59528879]
[1756777812162,0.72,200.32,200.27,3.59528879]
[1756777812163,3.35993829,200.3,200.27,3.59528879]
[1756777812339,3.35993829,200.31,200.27,3.59528879]
[1756777812656,4.99179265,200.33,200.27,3.59528879]
[1756777812867,3.35940187,200.32,200.26,0.47]
[1756777813039,8.35159132,200.32,200.27,3.59528879]
[1756777813238,5.71218945,200.32,200.27,3.59528879]
[1756777813539,4.99218945,200.32,200.27,3.59528879]
[1756777813753,5.71218945,200.32,200.27,3.59528879]
[1756777814037,4.99174704,200.34,200.28,0.47]
[1756777814238,3.35896556,200.33,200.28,3.59528879]
[1756777814471,4.07896556,200.33,200.27,3.59528879]
[1756777814670,0.72,200.32,200.27,3.59528879]
[1756777815143,3.35896556,200.33,200.27,4.06528879]
[1756777815344,8.35058687,200.34,200.28,3.59528879]
[1756777815573,4.07896556,200.33,200.22,13.59559401]
[1756777815741,4.07896556,200.32,200.24,3.59528879]
[1756777816071,4.07896556,200.31,200.24,3.59528879]
[1756777816240,3.35896556,200.3,200.24,3.59528879]
[1756777816441,0.72,200.3,200.24,3.59528879]
[1756777817272,3.35896556,200.33,200.29,3.59528879]
[1756777817273,4.07896556,200.33,200.29,3.59528879]
[1756777817464,4.07896556,200.32,200.26,3.59528879]
[1756777817769,4.19145762,200.37,200.25,3.59528879]
[1756777817942,0.72,200.31,200.25,3.59528879]
[1756777818141,0.72,200.31,200.26,3.59528879]
[1756777818340,0.72,200.3,200.24,0.03]
[1756777818583,0.72,200.3,200.24,3.62528879]
[1756777818783,0.72,200.3,200.25,3.59528879]
[1756777818980,4.08065381,200.32,200.25,3.59528879]
[1756777819264,4.99251123,200.3,200.24,3.62528879]
[1756777819464,4.08256052,200.29,200.24,3.62528879]
[1756777819669,4.08256052,200.29,200.24,0.03]
[1756777820385,0.72,200.28,200.24,0.03]
[1756777820889,0.72,200.27,200.24,0.03]
[1756777821276,5.71335198,200.27,200.24,0.03]
[1756777821482,4.99335198,200.27,200.24,0.03]
[1756777821689,5.71335198,200.27,200.24,0.03]
[1756777822480,4.99335198,200.27,200.24,0.03]
[1756777822692,4.99303337,200.28,200.24,0.03]
[1756777822988,4.19145762,200.32,200.26,3.59528879]
[1756777822989,0.72,200.31,200.26,3.59528879]
[1756777823168,0.72,200.3,200.24,3.62528879]
[1756777823364,5.71261189,200.3,200.25,3.59528879]
[1756777823579,3.36607485,200.29,200.25,3.59528879]
[1756777824292,0.72,200.3,200.25,3.59528879]
[1756777824498,0.72,200.3,200.24,0.03]
[1756777824794,8.3583419,200.31,200.25,3.59528879]
[1756777824997,49.81880355,200.73,200.25,3.59528879]
[1756777824998,3.36607485,200.3,200.27,3.59528879]
[1756777825169,3.36607485,200.31,200.25,0.47]
[1756777825369,8.3583441,200.31,200.25,0.47]
[1756777825581,4.08607485,200.3,200.24,13.62559401]
[1756777825790,4.08607485,200.3,200.26,3.59528879]
[1756777825791,3.36607485,200.3,200.26,3.59528879]
[1756777826588,4.08607485,200.3,200.24,14.09559401]
[1756777826784,3.58607485,200.3,200.24,14.09559401]
[1756777826987,0.72,200.3,200.24,14.09559401]
[1756777827187,0.72,200.3,200.26,3.59528879]
[1756777827386,17.46992228,200.35,200.24,0.03]
[1756777827586,0.72,200.29,200.25,3.59528879]
[1756777827791,0.72,200.28,200.25,3.59528879]
[1756777828098,0.72,200.28,200.24,3.62528879]
[1756777828602,0.72,200.27,200.24,0.03]
[1756777829103,0.72,200.26,200.24,0.03]
[1756777829814,4.99327031,200.27,200.24,0.03]
[1756777830004,0.72,200.25,200.24,0.03]
[1756777831887,5.7137578,200.25,200.24,0.03]
[1756777832607,5.7137578,200.25,200.17,3.62528879]
[1756777832815,0.72,200.24,200.18,3.59528879]
[1756777833127,4.99355041,200.26,200.2,3.59528879]
[1756777833420,0.72,200.25,200.17,0.53]
[1756777833601,0.72,200.25,200.23,3.59528879]
[1756777833794,4.99330343,200.27,200.24,3.59528879]
[1756777834195,4.99302577,200.28,200.24,3.59528879]
[1756777834509,0.72,200.26,200.19,0.5]
[1756777834698,0.72,200.26,200.17,0.03]
[1756777834902,0.72,200.26,200.19,3.59528879]
[1756777835110,17.47555023,200.28,200.21,3.59528879]
[1756777835111,0.71,200.25,200.21,3.59528879]
[1756777835288,0.71,200.27,200.23,3.59528879]
[1756777835487,0.71,200.26,200.23,3.59528879]
[1756777835810,0.71,200.25,200.23,3.59528879]
[1756777836014,0.71,200.24,200.22,3.59528879]
[1756777836604,0.71,200.24,200.22,3.62528879]
[1756777837107,0.77,200.26,200.22,3.62528879]
[1756777837320,0.71,200.25,200.22,3.62528879]
[1756777837531,0.71,200.24,200.22,2.3321877]
[1756777837731,0.71,200.23,200.22,0.03]
[1756777838896,4.07670952,200.23,200.22,0.03]
[1756777839310,0.71,200.23,200.22,0.03]
[1756777839617,0.71,200.23,200.22,1e-08]
[1756777839799,5.7042566,200.23,200.22,1e-08]
[1756777840911,13.27291572,200.23,200.22,1e-08]
[1756777841222,3.3638485,200.23,200.22,1e-08]
[1756777841720,3.3638485,200.25,200.22,1e-08]
[1756777841935,4.99400719,200.24,200.22,1e-08]
[1756777842107,3.3638485,200.23,200.22,1e-08]
[1756777844011,9.0681051,200.23,200.22,1e-08]
[1756777845111,4.0738485,200.23,200.22,1e-08]
[1756777845318,41.91,200.23,200.22,1e-08]
[1756777845512,4.0738485,200.23,200.22,1e-08]
[1756777845920,3.3638485,200.23,200.22,1e-08]
[1756777846113,3.35932964,200.24,200.22,1e-08]
[1756777846501,4.06932964,200.24,200.22,1e-08]
[1756777846719,0.71,200.24,200.22,1e-08]
[1756777846900,4.06928572,200.24,200.22,1e-08]
[1756777847102,0.71,200.23,200.22,1e-08]
[1756777847301,4.06928572,200.23,200.22,1e-08]
[1756777848802,41.12,200.23,200.22,1e-08]
[1756777849329,41.85,200.25,200.22,1e-08]
[1756777849625,3.35861815,200.24,200.22,1e-08]
[1756777849828,0.71,200.23,200.22,1e-08]
[1756777851336,5.7042566,200.23,200.22,1e-08]
[1756777851511,9.06287475,200.23,200.22,1e-08]
[1756777853230,50.18287475,200.23,200.22,1e-08]
[1756777853805,9.06287475,200.23,200.22,1e-08]
[1756777854012,50.18287475,200.23,200.22,1e-08]
[1756777855431,44.47861815,200.23,200.22,1e-08]
[1756777855623,41.83,200.23,200.22,1e-08]
[1756777856019,45.18828958,200.23,200.22,1e-08]
[1756777856223,50.18254618,200.23,200.22,1e-08]
[1756777856432,50.24254618,200.23,200.22,1e-08]
[1756777858619,3.41828958,200.23,200.22,1e-08]
[1756777858815,41.18,200.23,200.22,1e-08]
[1756777859313,0.06,200.23,200.22,1e-08]
[1756777861240,0.06,200.23,200.22,2.80218771]
[1756777861826,0.06,200.23,200.22,0.50000001]
[1756777862024,0.06,200.23,200.22,2.80218771]
[1756777862738,0.06,200.23,200.22,7.79669375]
[1756777865816,0.06,200.23,200.22,2.80218771]
[1756777866017,0.06,200.23,200.22,1e-08]
[1756777867124,0.06,200.23,200.22,13.59559402]
[1756777867527,0.06,200.23,200.22,1e-08]
[1756777868141,0.71,200.23,200.22,1e-08]
[1756777869026,5.7042566,200.23,200.22,1e-08]
[1756777869233,5.7042566,200.23,200.19,0.03]
[1756777869442,3.35861265,200.22,200.19,0.03]
[1756777869633,4.00861265,200.22,200.19,0.03]
[1756777869828,3.35861265,200.22,200.19,0.03]
[1756777870034,0.06,200.23,200.2,2.3021877]
[1756777871026,0.06,200.23,200.21,2.3021877]
[1756777871437,0.06,200.23,200.22,16.39778171]
[1756777873039,0.06,200.23,200.22,21.39228775]
[1756777873618,0.06,200.23,200.19,0.03]
[1756777873819,0.06,200.23,200.19,16.42778171]
[1756777874141,0.06,200.23,200.22,15.89778171]
[1756777875845,0.06,200.23,200.21,13.59559401]
[1756777876442,0.71,200.23,200.2,2.3021877]
[1756777876642,0.06,200.23,200.19,2.3321877]
[1756777876840,0.71,200.23,200.19,2.3321877]
[1756777877922,0.06,200.23,200.19,2.3321877]
[1756777878324,0.06,200.23,200.2,15.89778171]
[1756777878551,0.06,200.23,200.2,13.59559401]
[1756777878764,0.06,200.23,200.2,15.89778171]
[1756777880466,0.06,200.23,200.2,20.89257259]
[1756777880648,0.06,200.23,200.21,2.3021877]
[1756777880961,0.06,200.23,200.22,2.3021877]
[1756777881463,0.06,200.23,200.21,2.3021877]
[1756777881665,0.71,200.23,200.19,2.3321877]
[1756777881867,0.06,200.23,200.19,0.03]
[1756777882163,0.65,200.22,200.19,2.3321877]
[1756777882564,0.65,200.22,200.2,2.3021877]
[1756777882758,0.06,200.23,200.21,2.3021877]
[1756777882959,0.65,200.22,200.2,2.3021877]
[1756777883162,0.65,200.22,200.19,2.3321877]
[1756777884170,0.65,200.22,200.19,0.03]
[1756777884357,0.65,200.22,200.2,2.3021877]
[1756777884666,5.05428058,200.23,200.2,2.3021877]
[1756777884974,0.65,200.22,200.2,2.3021877]
[1756777886068,0.06,200.23,200.21,2.3021877]
[1756777886567,0.06,200.23,200.2,13.59559401]
[1756777886870,0.06,200.23,200.22,2.3021877]
[1756777887170,0.71,200.23,200.21,2.3021877]
[1756777887657,0.06,200.23,200.21,2.3021877]
[1756777889272,0.06,200.23,200.19,0.03]
[1756777889273,0.71,200.23,200.19,0.03]
[1756777889461,0.71,200.23,200.21,2.3021877]
[1756777890074,0.71,200.23,200.19,0.03]
[1756777890380,0.65,200.22,200.2,2.3021877]
[1756777890558,0.65,200.22,200.19,0.03]
[1756777890756,0.65,200.22,200.2,2.3021877]
[1756777890955,5.05426093,200.23,200.21,0.03]
[1756777891475,4.01465737,200.22,200.21,0.03]
[1756777891769,4.01465778,200.22,200.21,0.03]
[1756777891982,0.65,200.22,200.21,0.03]
[1756777892560,5.64450604,200.22,200.21,0.03]
[1756777893278,9.00929398,200.22,200.21,0.03]
[1756777894181,5.64450604,200.22,200.21,0.03]
[1756777894579,6.64450604,200.22,200.21,0.03]
[1756777895964,10.0096062,200.22,200.21,0.03]
[1756777896284,6.64450604,200.22,200.21,0.03]
[1756777896785,10.00973854,200.22,200.21,0.03]
[1756777897486,4.3652325,200.22,200.21,0.03]
[1756777897781,1.0,200.22,200.21,2.3321877]
[1756777898374,1.0,200.22,200.21,0.03]
[1756777898580,1.72,200.22,200.21,0.03]
[1756777900201,6.71450604,200.22,200.21,0.03]
[1756777900680,10.08045257,200.22,200.21,0.03]
[1756777901590,10.08149458,200.22,200.21,0.03]
[1756777901807,5.08698854,200.22,200.21,0.03]
[1756777902084,1.0,200.22,200.21,0.03]
[1756777902297,1.72,200.22,200.21,0.03]
[1756777902588,6.71450604,200.22,200.21,0.03]